bitfinex-derivatives/quotes_SOLF0:USTF0_20240913
["timestamp","ask_amount","ask_price","bid_price","bid_amount"]
[1726223533592,11.52,133.62,133.59,4.7574]
[1726223535793,11.52,133.62,133.59,1.3892]
[1726223536290,11.52,133.63,133.59,4.7574]
[1726223536596,11.52,133.63,133.59,1.3892]
[1726223536986,15.19426365,133.63,133.59,1.3892]
[1726223537187,15.19426365,133.63,133.6,3.368]
[1726223538190,15.19426365,133.63,133.59,4.7574]
[1726223538792,18.56156365,133.63,133.59,4.7574]
[1726223544103,11.52,133.61,133.59,4.7574]
[1726223544303,11.52,133.61,133.59,1.3892]
[1726223544601,11.52,133.6,133.59,1.3892]
[1726223545203,11.52,133.6,133.56,3.3689]
[1726223545398,11.52,133.58,133.55,1.4314]
[1726223545593,11.52,133.58,133.55,4.8007]
[1726223546602,3.3685,133.59,133.56,3.3691]
[1726223546914,3.3681,133.6,133.56,4.8134]
[1726223547199,11.52,133.59,133.56,4.8134]
[1726223547899,14.8883,133.59,133.56,4.8134]
[1726223548499,11.52,133.59,133.56,4.8134]
[1726223549999,7.13486449,133.6,133.56,16.3334]
[1726223550200,11.52,133.59,133.56,4.8134]
[1726223550497,14.8883,133.59,133.56,4.8134]
[1726223552007,11.52,133.58,133.56,4.8132]
[1726223552302,11.52,133.58,133.56,1.4443]
[1726223552707,3.75486964,133.6,133.56,4.8133]
[1726223552907,11.52,133.59,133.56,4.8133]
[1726223553310,14.8883,133.59,133.56,4.8133]
[1726223555501,3.3683,133.59,133.56,4.8133]
[1726223555805,11.52,133.58,133.56,4.8133]
[1726223556809,11.52,133.58,133.56,1.4443]
[1726223557008,11.52,133.57,133.55,1.3183]
[1726223557810,3.3689,133.57,133.55,1.3183]
[1726223558004,11.52,133.56,133.55,1.3183]
[1726223559211,11.52,133.56,133.54,3.3694]
[1726223559408,11.52,133.55,133.54,3.3694]
[1726223559815,11.52,133.55,133.52,1.3491]
[1726223560520,14.8894,133.55,133.53,3.3696]
[1726223562703,11.52,133.55,133.52,1.3491]
[1726223563320,14.8894,133.55,133.52,4.719]
[1726223565019,3.3698,133.54,133.52,1.3491]
[1726223565315,11.52,133.55,133.52,1.3491]
[1726223565627,3.7666696,133.58,133.52,1.3491]
[1726223565919,11.52,133.57,133.53,11.52]
[1726223566116,18.65285477,133.57,133.54,3.3694]
[1726223566308,3.65493608,133.6,133.53,11.52]
[1726223566510,11.52,133.59,133.53,11.52]
[1726223566818,11.52,133.59,133.57,3.3686]
[1726223569623,11.52,133.59,133.56,3.3689]
[1726223570528,7.13280404,133.6,133.56,3.3689]
[1726223570725,11.52,133.59,133.56,3.3689]
[1726223575724,11.52,133.59,133.57,3.3688]
[1726223580042,11.52,133.59,133.56,3.3689]
[1726223580241,11.52,133.59,133.55,1.4264]
[1726223580638,11.52,133.59,133.56,3.3689]
[1726223582738,14.8883,133.59,133.56,3.3689]
[1726223583041,11.52,133.59,133.56,3.3689]
[1726223587141,14.8883,133.59,133.56,3.3689]
[1726223588850,14.8886,133.58,133.55,3.3692]
[1726223590145,3.3688,133.57,133.54,3.3694]
[1726223590346,11.52,133.56,133.51,14.2622]
[1726223590848,11.52,133.55,133.51,12.8491]
[1726223591242,11.52,133.55,133.53,3.3697]
[1726223591442,14.8891,133.56,133.51,12.8491]
[1726223592149,11.52,133.56,133.54,3.3694]
[1726223593146,14.8891,133.56,133.54,3.3694]
[1726223594054,11.52,133.56,133.54,3.3694]
[1726223597553,14.8891,133.56,133.54,3.3694]
[1726223600147,14.8891,133.56,133.53,3.3697]
[1726223602357,14.8895,133.55,133.52,3.3699]
[1726223602856,33.08219016,133.64,133.51,12.8491]
[1726223602857,3.73894799,133.57,133.51,12.8491]
[1726223603059,11.52,133.58,133.54,11.52]
[1726223603462,14.8887,133.58,133.55,3.3692]
[1726223603758,18.63888732,133.58,133.55,3.3692]
[1726223604149,18.63888732,133.58,133.54,14.8895]
[1726223604652,11.52,133.6,133.57,3.3688]
[1726223604844,15.27243518,133.6,133.57,3.3688]
[1726223607262,15.27243518,133.6,133.56,3.3689]
[1726223608263,11.52,133.58,133.55,3.3692]
[1726223608954,11.52,133.58,133.54,11.52]
[1726223608955,11.52,133.58,133.54,3.3694]
[1726223609150,11.52,133.58,133.53,11.52]
[1726223609358,14.8887,133.58,133.53,11.52]
[1726223609559,14.8887,133.58,133.54,3.3694]
[1726223610558,14.8887,133.58,133.55,3.3693]
[1726223611558,14.8887,133.58,133.54,3.3694]
[1726223611559,11.52,133.57,133.54,3.3694]
[1726223619273,14.8888,133.57,133.54,3.3694]
[1726223619462,11.52,133.55,133.53,3.3697]
[1726223620972,3.3688,133.57,133.54,3.3695]
[1726223621166,11.52,133.56,133.54,3.3695]
[1726223622272,11.52,133.56,133.55,3.3693]
[1726223622472,14.8886,133.58,133.55,3.3693]
[1726223626869,11.52,133.58,133.55,3.3693]
[1726223628977,14.8886,133.58,133.55,3.3693]
[1726223631383,11.52,133.58,133.55,3.3693]
[1726223632181,14.8886,133.58,133.54,3.3694]
[1726223634781,12.9598,133.59,133.53,11.52]
[1726223635370,1.3487,133.63,133.51,1.3291]
[1726223635371,1.3487,133.63,133.56,11.52]
[1726223635583,11.52,133.61,133.56,11.52]
[1726223635783,11.52,133.61,133.58,3.3684]
[1726223639284,14.8878,133.61,133.58,3.3684]
[1726223639592,14.8878,133.61,133.57,3.3687]
[1726223639886,11.52,133.6,133.57,3.3687]
[1726223640476,14.8881,133.6,133.57,3.3687]
[1726223641481,14.8879,133.61,133.57,3.3687]
[1726223641984,3.3677,133.62,133.58,3.3685]
[1726223642284,11.52,133.61,133.58,3.3685]
[1726223643386,3.3677,133.62,133.58,3.3685]
[1726223643582,11.52,133.61,133.58,3.3685]
[1726223643783,157.88130946,133.65,133.6,11.52]
[1726223644080,157.88130946,133.65,133.61,11.52]
[1726223644884,157.88130946,133.65,133.62,3.3674]
[1726223646483,157.88130946,133.65,133.63,3.3672]
[1726223650488,157.88130946,133.65,133.58,2.7999]
[1726223650688,1.66200597,133.68,133.64,11.52]
[1726223651890,1.66200597,133.68,133.65,3.3667]
[1726223654790,1.66200597,133.68,133.66,3.3665]
[1726223655289,0.24670597,133.68,133.67,3.3663]
[1726223656488,0.24670597,133.68,133.67,14.8863]
[1726223658498,0.24670597,133.68,133.67,3.3663]
[1726223658696,0.24670597,133.68,133.67,14.8863]
[1726223662082,0.24670597,133.68,133.67,3.3663]
[1726223662297,0.24670597,133.68,133.66,3.3665]
[1726223662598,0.24670597,133.68,133.65,12.8283]
[1726223663099,0.24670597,133.68,133.66,11.52]
[1726223663296,0.24670597,133.68,133.67,3.3663]
[1726223668502,0.24670597,133.68,133.67,14.8863]
[1726223672300,0.24670597,133.68,133.67,3.3663]
[1726223672699,0.24670597,133.68,133.67,14.8863]
[1726223678909,0.24670597,133.68,133.67,3.3663]
[1726223679420,1.20007883,133.7,133.65,4.4876]
[1726223679606,6.29075837,133.71,133.65,4.4876]
[1726223679821,2.01302567,133.72,133.65,4.4876]
[1726223680022,2.01302567,133.72,133.65,2.8919]
[1726223680326,2.01302567,133.72,133.71,3.3653]
[1726223681420,2.01302567,133.72,133.71,14.8853]
[1726223700649,2.01302567,133.72,133.71,3.3653]
[1726223701053,2.01302567,133.72,133.71,14.8853]
[1726223705853,2.01302567,133.72,133.65,131.71952685]
[1726223706055,2.01302567,133.72,133.65,126.48414419]
[1726223706256,11.52,133.71,133.65,125.17584419]
[1726223706459,11.52,133.7,133.61,3.1356]
[1726223706660,13.0677,133.69,133.64,11.52]
[1726223707161,13.0677,133.69,133.65,11.52]
[1726223707955,1.5477,133.69,133.67,11.52]
[1726223708262,2.01302567,133.72,133.68,11.52]
[1726223708559,2.01302567,133.72,133.69,3.3657]
[1726223708560,5.37802567,133.72,133.69,3.3657]
[1726223708758,2.01302567,133.72,133.7,11.52]
[1726223709758,2.01302567,133.72,133.71,14.8853]
[1726223712160,2.01302567,133.72,133.7,14.8855]
[1726223712461,13.53302567,133.72,133.68,11.52]
[1726223712762,13.53302567,133.72,133.69,3.3656]
[1726223713860,16.89802567,133.72,133.69,3.3656]
[1726223714362,13.53302567,133.72,133.68,11.52]
[1726223714564,1.5335,133.71,133.68,11.52]
[1726223714868,1.5335,133.71,133.68,14.8859]
[1726223715761,1.5335,133.71,133.69,3.3657]
[1726223718664,2.01302567,133.72,133.69,3.3657]
[1726223718867,2.01302567,133.72,133.69,11.52]
[1726223719870,2.01302567,133.72,133.7,3.3655]
[1726223720980,2.01302567,133.72,133.69,3.3657]
[1726223721276,2.01302567,133.72,133.69,11.52]
[1726223722172,2.01302567,133.72,133.69,14.8856]
[1726223722667,2.01302567,133.72,133.69,11.52]
[1726223724069,2.01302567,133.72,133.7,11.52]
[1726223724868,2.01302567,133.72,133.71,3.3653]
[1726223727378,2.01302567,133.72,133.71,14.8853]
[1726223728276,2.99467943,133.74,133.71,11.52]
[1726223728478,2.99467943,133.74,133.73,11.52]
[1726223728973,2.99467943,133.74,133.73,14.8848]
[1726223731178,5.93876132,133.75,133.74,3.3645]
[1726223731377,9.01387864,133.77,133.74,11.52]
[1726223731581,9.89244402,133.79,133.76,11.52]
[1726223731879,9.89244402,133.79,133.78,11.52]
[1726223732070,9.89244402,133.79,133.78,14.8835]
[1726223732271,6.75231052,133.83,133.78,11.52]
[1726223732480,6.75231052,133.83,133.8,11.52]
[1726223732776,6.75231052,133.83,133.8,14.883]
[1726223732965,6.75231052,133.83,133.8,11.52]
[1726223733170,6.75231052,133.83,133.76,3.76355509]
[1726223733171,6.75231052,133.83,133.81,11.52]
[1726223734076,6.75231052,133.83,133.81,14.8828]
[1726223734775,6.75231052,133.83,133.8,3.3628]
[1726223734980,6.75231052,133.83,133.73,6.7292]
[1726223734981,6.75231052,133.83,133.81,11.52]
[1726223735368,6.75231052,133.83,133.81,14.8828]
[1726223736983,6.75231052,133.83,133.81,11.52]
[1726223737886,6.75231052,133.83,133.79,11.52]
[1726223738088,12.94292305,133.82,133.79,11.52]
[1726223738281,3.3628,133.81,133.79,11.52]
[1726223739088,16.30552305,133.82,133.79,11.52]
[1726223739583,16.30552305,133.82,133.79,14.8832]
[1726223740886,16.30552305,133.82,133.79,11.52]
[1726223742692,12.94292305,133.82,133.79,11.52]
[1726223744278,11.38402305,133.82,133.79,11.52]
[1726223744585,11.38402305,133.82,133.81,11.52]
[1726223747392,11.38402305,133.82,133.81,14.8828]
[1726223749988,11.38402305,133.82,133.74,1.4836]
[1726223749989,11.38402305,133.82,133.8,11.52]
[1726223750493,14.74662305,133.82,133.8,11.52]
[1726223750887,11.38402305,133.82,133.74,1.4836]
[1726223751089,3.3628,133.81,133.79,11.52]
[1726223751292,11.38402305,133.82,133.79,11.52]
[1726223751789,14.74672305,133.82,133.79,14.8832]
[1726223753003,11.38402305,133.82,133.81,11.52]
[1726223755696,11.38402305,133.82,133.81,14.8828]
[1726223756502,11.38402305,133.82,133.8,3.3629]
[1726223756691,11.38402305,133.82,133.81,11.52]
[1726223760594,11.38402305,133.82,133.81,14.8828]
[1726223761692,11.38402305,133.82,133.81,11.52]
[1726223762200,11.38402305,133.82,133.8,3.363]
[1726223762201,11.38402305,133.82,133.8,11.52]
[1726223762394,11.38402305,133.82,133.74,1.4836]
[1726223762395,3.3628,133.81,133.74,1.4836]
[1726223762596,11.38402305,133.82,133.79,11.52]
[1726223763207,3.363,133.8,133.79,11.52]
[1726223765206,11.52,133.8,133.76,11.52]
[1726223765592,3.3636,133.78,133.76,11.52]
[1726223765798,11.52,133.8,133.76,11.52]
[1726223765995,5.29136372,133.81,133.76,11.52]
[1726223766399,3.3634,133.79,133.76,11.52]
[1726223767511,3.3635,133.78,133.76,11.52]
[1726223767695,5.29136372,133.81,133.76,11.52]
[1726223768306,3.3634,133.79,133.76,11.52]
[1726223768704,3.3632,133.8,133.77,11.52]
[1726223769302,3.3632,133.8,133.77,14.8836]
[1726223769614,4.9138,133.81,133.79,11.52]
[1726223769808,1.5509,133.81,133.8,11.52]
[1726223772814,4.9137,133.81,133.8,11.52]
[1726223773310,4.9137,133.81,133.77,3.3635]
[1726223773515,4.9137,133.81,133.78,11.52]
[1726223773712,14.74662305,133.82,133.8,11.52]
[1726223773910,11.38402305,133.82,133.8,11.52]
[1726223774107,11.38402305,133.82,133.81,11.52]
[1726223775817,11.38402305,133.82,133.81,14.8828]
[1726223778217,11.38402305,133.82,133.81,11.52]
[1726223780215,11.38402305,133.82,133.81,14.8828]
[1726223795125,11.38402305,133.82,133.8,11.52]
[1726223795925,14.74672305,133.82,133.8,11.52]
[1726223796830,14.74672305,133.82,133.8,14.883]
[1726223797332,14.74672305,133.82,133.8,11.52]
[1726223798726,14.74672305,133.82,133.8,14.8829]
[1726223802233,3.363,133.8,133.74,5.36386969]
[1726223802536,3.363,133.8,133.79,11.52]
[1726223803333,3.3629,133.81,133.79,11.52]
[1726223803725,3.3629,133.81,133.8,11.52]
[1726223804422,14.74662305,133.82,133.8,14.8829]
[1726223804623,11.38402305,133.82,133.81,11.52]
[1726223805335,11.38402305,133.82,133.81,14.8828]
[1726223806134,11.38402305,133.82,133.81,11.52]
[1726223807233,11.38402305,133.82,133.78,3.3634]
[1726223807427,11.38402305,133.82,133.79,11.52]
[1726223807629,3.3629,133.81,133.79,11.52]
[1726223811235,14.74662305,133.82,133.8,11.52]
[1726223811440,11.38402305,133.82,133.81,11.52]
[1726223811634,11.38402305,133.82,133.74,5.36386969]
[1726223811830,11.38402305,133.82,133.81,11.52]
[1726223812540,14.74652305,133.82,133.81,11.52]
[1726223814751,11.38402305,133.82,133.81,11.52]
[1726223814936,11.38402305,133.82,133.8,11.52]
[1726223815440,3.3628,133.81,133.8,11.52]
[1726223815634,11.38402305,133.82,133.8,11.52]
[1726223815835,14.74672305,133.82,133.8,11.52]
[1726223817341,3.3628,133.81,133.8,11.52]
[1726223818144,14.74662305,133.82,133.8,11.52]
[1726223818741,14.74662305,133.82,133.79,3.3631]
[1726223818946,14.74662305,133.82,133.81,11.52]
[1726223820439,14.74662305,133.82,133.8,11.52]
[1726223822149,3.3628,133.81,133.8,11.52]
[1726223822751,3.3628,133.81,133.79,11.52]
[1726223823249,3.363,133.8,133.79,11.52]
[1726223823750,3.3634,133.79,133.74,3.76906969]
[1726223824050,22.90402305,133.82,133.71,125.10685268]
[1726223824051,3.73148919,133.81,133.71,125.10685268]
[1726223824246,3.3636,133.78,133.76,11.52]
[1726223825347,3.3636,133.78,133.76,14.884]
[1726223825548,3.3636,133.78,133.76,11.52]
[1726223826946,3.3634,133.79,133.77,11.52]
[1726223829644,22.90402305,133.82,133.77,14.8838]
[1726223829645,3.3631,133.8,133.77,14.8838]
[1726223831349,11.38402305,133.82,133.79,14.8833]
[1726223831549,11.38402305,133.82,133.79,11.52]
[1726223831755,3.3629,133.81,133.79,11.52]
[1726223832247,3.3628,133.81,133.78,11.52]
[1726223832447,15.33778741,133.81,133.71,125.10685268]
[1726223832650,15.33778741,133.81,133.76,11.52]
[1726223832852,11.52,133.81,133.76,11.52]
[1726223833051,11.52,133.81,133.78,11.52]
[1726223833254,3.3632,133.8,133.78,11.52]
[1726223833650,14.8829,133.81,133.78,11.52]
[1726223833849,3.3629,133.81,133.78,11.52]
[1726223834049,22.90402305,133.82,133.78,11.52]
[1726223834653,22.90402305,133.82,133.77,3.3636]
[1726223834860,3.3631,133.8,133.78,11.52]
[1726223838462,3.3628,133.81,133.78,14.8835]
[1726223838959,3.3628,133.81,133.79,11.52]
[1726223839354,14.74672305,133.82,133.79,14.8832]
[1726223839561,11.38402305,133.82,133.8,11.52]
[1726223840458,14.74652305,133.82,133.8,11.52]
[1726223843064,11.38402305,133.82,133.8,14.8829]
[1726223846964,11.38402305,133.82,133.81,14.8828]
[1726223847463,12.07729611,133.84,133.83,3.3623]
[1726223847664,12.07729611,133.84,133.83,14.8823]
[1726223855973,12.07729611,133.84,133.83,3.3623]
[1726223856171,12.07729611,133.84,133.83,14.8823]
[1726223862778,12.07729611,133.84,133.75,1.5378]
[1726223862779,12.07729611,133.84,133.82,3.3624]
[1726223862974,12.07729611,133.84,133.83,11.52]
[1726223863584,12.07729611,133.84,133.83,14.8823]
[1726223866780,7.89945926,133.85,133.84,3.362]
[1726223867081,13.6191696,133.86,133.84,11.52]
[1726223867281,13.6191696,133.86,133.85,11.52]
[1726223867787,13.6191696,133.86,133.85,14.8818]
[1726223875786,13.6191696,133.86,133.82,3.72617178]
[1726223876090,13.6191696,133.86,133.85,11.52]
[1726223877983,13.6191696,133.86,133.84,3.3619]
[1726223878186,13.6191696,133.86,133.85,14.8818]
[1726223880293,13.6191696,133.86,133.78,0.1548]
[1726223880489,13.6191696,133.86,133.84,11.52]
[1726223881087,3.3618,133.85,133.78,0.1548]
[1726223881280,3.3618,133.85,133.76,0.1545]
[1726223881489,3.3618,133.85,133.83,11.52]
[1726223882285,3.362,133.84,133.81,3.3627]
[1726223882485,1.5997,133.85,133.82,11.52]
[1726223882887,3.3622,133.84,133.82,11.52]
[1726223883395,3.3629,133.81,133.76,3.3638]
[1726223883591,1.6141,133.84,133.78,11.52]
[1726223884002,3.3627,133.82,133.78,11.52]
[1726223884296,11.52,133.83,133.78,11.52]
[1726223884995,3.3626,133.82,133.78,11.52]
[1726223885291,11.52,133.82,133.77,11.52]
[1726223885492,1.6141,133.84,133.78,11.52]
[1726223885693,1.6141,133.84,133.7,0.308]
[1726223885694,1.6141,133.84,133.79,11.52]
[1726223885888,13.1341,133.84,133.79,11.52]
[1726223886589,1.6141,133.84,133.79,11.52]
[1726223887892,3.3626,133.82,133.79,11.52]
[1726223890392,3.3623,133.83,133.79,11.52]
[1726223890797,3.3623,133.83,133.79,14.8833]
[1726223892599,4.9761,133.84,133.81,11.52]
[1726223893696,4.9761,133.84,133.81,14.8827]
[1726223894291,4.9761,133.84,133.81,11.52]
[1726223895101,4.9761,133.84,133.81,14.8827]
[1726223895302,4.9761,133.84,133.81,11.52]
[1726223896407,13.1341,133.84,133.73,5.26253585]
[1726223896600,11.52,133.83,133.78,11.52]
[1726223898004,3.3626,133.82,133.78,14.8833]
[1726223898412,3.3626,133.82,133.78,11.52]
[1726223898610,3.3626,133.82,133.79,3.3633]
[1726223899606,3.3628,133.81,133.78,14.8834]
[1726223899913,11.52,133.82,133.77,11.52]
[1726223900299,3.3629,133.81,133.77,14.8836]
[1726223900503,3.3629,133.81,133.77,11.52]
[1726223900813,3.3629,133.81,133.78,3.3635]
[1726223901608,11.52,133.82,133.77,14.8836]
[1726223902110,3.3631,133.8,133.77,14.8836]
[1726223902708,3.3631,133.8,133.78,3.3635]
[1726223903006,3.3631,133.8,133.77,11.52]
[1726223903821,1.6141,133.84,133.78,11.52]
[1726223904011,13.1341,133.84,133.78,11.52]
[1726223904614,1.6141,133.84,133.78,11.52]
[1726223904815,13.1341,133.84,133.79,11.52]
[1726223905420,3.3625,133.83,133.79,11.52]
[1726223906011,3.3625,133.82,133.79,14.8832]
[1726223908418,13.1341,133.84,133.79,11.52]
[1726223908625,3.3623,133.83,133.8,3.3629]
[1726223908810,1.6141,133.84,133.82,11.52]
[1726223910327,4.9762,133.84,133.82,11.52]
[1726223911524,13.6191696,133.86,133.83,11.52]
[1726223912319,16.9808696,133.86,133.83,11.52]
[1726223913118,3.3618,133.85,133.83,11.52]
[1726223914521,16.9808696,133.86,133.83,14.8822]
[1726223918429,13.6191696,133.86,133.85,11.52]
[1726223919434,13.6191696,133.86,133.84,11.52]
[1726223919823,11.52,133.85,133.76,125.06032423]
[1726223920029,11.52,133.85,133.8,11.52]
[1726223920427,3.3622,133.84,133.81,3.3626]
[1726223920628,11.52,133.85,133.8,11.52]
[1726223920925,11.52,133.85,133.79,11.52]
[1726223920926,11.52,133.84,133.79,11.52]
[1726223921139,11.52,133.82,133.78,11.52]
[1726223921437,11.52,133.81,133.76,125.06032423]
[1726223921636,11.52,133.81,133.76,136.58032423]
[1726223922034,3.3631,133.8,133.77,3.3636]
[1726223923230,3.3631,133.8,133.78,3.3635]
[1726223927549,3.3629,133.81,133.78,3.3635]
[1726223929057,3.3628,133.81,133.78,3.3635]
[1726223929457,3.363,133.8,133.77,14.8836]
[1726223932157,3.363,133.8,133.78,3.3635]
[1726223933859,14.8829,133.81,133.78,3.3635]
[1726223936463,3.3629,133.81,133.78,3.3635]
[1726223936658,14.8827,133.82,133.77,11.52]
[1726223936859,14.8827,133.82,133.78,11.52]
[1726223937870,14.8827,133.82,133.79,3.3632]
[1726223939363,3.362,133.85,133.81,11.52]
[1726223939672,25.1391696,133.86,133.81,11.52]
[1726223939866,25.1391696,133.86,133.83,3.3621]
[1726223940573,28.5007696,133.86,133.83,3.3621]
[1726223942571,13.6191696,133.86,133.83,3.3621]
[1726223942764,13.6191696,133.86,133.84,3.362]
[1726223944774,13.6191696,133.86,133.85,3.3618]
[1726223946766,13.6191696,133.86,133.85,14.8818]
[1726223952274,13.6191696,133.86,133.85,11.52]
[1726223953776,13.6191696,133.86,133.85,14.8818]
[1726223955575,16.9806696,133.86,133.84,3.3619]
[1726223955779,13.6191696,133.86,133.82,11.52]
[1726223956167,3.3619,133.85,133.83,3.3622]
[1726223956367,3.3619,133.85,133.77,1.5411]
[1726223956573,3.3619,133.85,133.82,14.8824]
[1726223956776,3.3619,133.85,133.82,11.52]
[1726223956976,16.9807696,133.86,133.82,11.52]
[1726223957177,16.9807696,133.86,133.83,3.3621]
[1726223958175,16.9807696,133.86,133.83,14.8821]
[1726223959584,13.6191696,133.86,133.84,3.3619]
[1726223960380,13.6191696,133.86,133.84,14.8819]
[1726223960581,13.6191696,133.86,133.85,3.3618]
[1726223962487,13.6191696,133.86,133.84,14.8819]
[1726223962697,13.6191696,133.86,133.84,3.3619]
[1726223967691,3.3618,133.85,133.82,3.3624]
[1726223967875,3.3618,133.85,133.82,14.8824]
[1726223968786,3.3621,133.84,133.81,14.8826]
[1726223969083,25.1391696,133.86,133.81,14.8826]
[1726223969477,25.1391696,133.86,133.82,3.3625]
[1726223969677,3.3619,133.85,133.82,3.3625]
[1726223971984,13.6191696,133.86,133.82,11.52]
[1726223972189,13.6191696,133.86,133.83,11.52]
[1726223972396,13.6191696,133.86,133.85,11.52]
[1726223977189,8.61608639,133.87,133.85,11.52]
[1726223977394,8.61608639,133.87,133.86,11.52]
[1726223977599,8.61608639,133.87,133.86,14.8815]
[1726223978693,8.61608639,133.87,133.86,3.3615]
[1726223978902,8.61608639,133.87,133.86,14.8815]
[1726223983191,14.17258907,133.88,133.87,3.3613]
[1726223983399,14.17258907,133.88,133.87,14.8813]
[1726223985198,14.17258907,133.88,133.87,3.3613]
[1726223985399,14.17258907,133.88,133.87,14.8813]
[1726223992407,4.77790092,133.92,133.89,3.3607]
[1726223992613,4.77790092,133.92,133.89,14.8807]
[1726223999818,4.77790092,133.92,133.89,3.3607]
[1726224000014,6.40410092,133.92,133.89,3.3607]
[1726224000410,9.76420092,133.92,133.89,3.3607]
[1726224000808,17.92410092,133.92,133.87,11.52]
[1726224001419,8.24622756,133.9,133.87,14.8811]
[1726224002023,3.3608,133.89,133.86,14.8814]
[1726224002432,4.88562756,133.9,133.83,124.99692455]
[1726224002433,20.06801722,133.9,133.83,124.99692455]
[1726224002608,11.52,133.88,133.78,8.3152]
[1726224002813,11.52,133.88,133.84,11.52]
[1726224003124,14.8811,133.88,133.85,3.3616]
[1726224003619,11.52,133.88,133.8,0.1541]
[1726224003818,14.8812,133.88,133.85,3.3617]
[1726224005127,3.3609,133.89,133.85,11.52]
[1726224005328,11.52,133.89,133.85,11.52]
[1726224005714,11.52,133.89,133.85,14.8816]
[1726224005915,13.1438,133.89,133.85,14.8816]
[1726224006126,3.3611,133.88,133.85,14.8816]
[1726224007125,14.8811,133.88,133.85,3.3616]
[1726224007420,3.3614,133.87,133.84,3.362]
[1726224007614,11.52,133.88,133.84,3.362]
[1726224007821,1.6089,133.87,133.84,3.362]
[1726224008324,4.9702,133.87,133.84,3.362]
[1726224008521,16.4902,133.87,133.84,3.362]
[1726224008927,16.4902,133.87,133.85,3.3617]
[1726224010629,16.4902,133.87,133.84,3.3619]
[1726224013628,4.9702,133.87,133.84,3.3619]
[1726224014023,11.52,133.86,133.84,3.3619]
[1726224014723,11.52,133.85,133.74,135.42198347]
[1726224014919,11.52,133.85,133.75,3.2995]
[1726224015119,3.362,133.84,133.81,3.3626]
[1726224016130,11.52,133.83,133.81,3.3626]
[1726224016327,11.52,133.82,133.75,3.2995]
[1726224016527,1.6704,133.84,133.71,3.82752951]
[1726224016528,11.52,133.78,133.71,3.82752951]
[1726224016728,11.52,133.77,133.7,126.77398914]
[1726224016935,11.52,133.78,133.73,11.52]
[1726224017830,11.52,133.78,133.76,3.3639]
[1726224020331,11.52,133.78,133.73,11.52]
[1726224020332,3.3631,133.8,133.77,3.3638]
[1726224020531,14.8831,133.8,133.77,3.3638]
[1726224021529,11.52,133.78,133.74,11.52]
[1726224021934,11.52,133.78,133.77,3.3638]
[1726224022333,14.8831,133.8,133.77,3.3638]
[1726224024331,3.3265,133.81,133.79,3.3633]
[1726224026241,1.6978,133.81,133.8,3.363]
[1726224027234,1.6978,133.81,133.7,126.77398914]
[1726224027428,1.6978,133.81,133.76,11.52]
[1726224027734,1.6978,133.81,133.8,3.363]
[1726224029335,1.6704,133.84,133.8,11.52]
[1726224029526,3.2344,133.89,133.83,11.52]
[1726224029838,11.52,133.88,133.84,11.52]
[1726224030533,11.52,133.88,133.85,3.3617]
[1726224031038,11.52,133.88,133.84,11.52]
[1726224031933,4.913,133.89,133.85,11.52]
[1726224032128,4.913,133.89,133.86,3.3614]
[1726224032625,4.913,133.89,133.86,3.3615]
[1726224033038,4.913,133.89,133.85,11.52]
[1726224033240,4.913,133.89,133.86,3.3615]